Workbook

Sheet Summary of Pricing
B2: C2.2.2 SUMMARY OF PRICING SCHEDULE - RWY TWY and GA works
B4: 4429
B5: RUNWAY AND TAXIWAY REHABILITATION AT CHIEF DAWID STUURMAN INTERNATIONAL AIRPORT (CDSIA)
B7: GENERAL
B8: C1.2 | C8: GENERAL REQUIREMENTS AND PROVISIONS | D8: ='C1.2'!I39 -> R558,000.00
B9: C1.3 | C9: CONTRACTOR’S SITE ESTABLISHMENT AND GENERAL OBLIGATIONS | D9: ='C1.3'!I16 -> R0.00
B10: C1.4 | C10: FACILITIES FOR THE ENGINEER | D10: ='C1.4'!I45 -> R480,000.00
B11: C1.5 | C11: ACCOMMODATION OF TRAFFIC | D11: ='C1.5'!I20 -> R0.00
B12: C1.6 | C12: CLEARING AND GRUBBING | D12: ='C1.6'!I20 -> R0.00
B13: C1.7 | C13: LOADING AND HAULING | D13: R0.00 | E13: =SUM(D8:D13) -> R1,038,000.00
B15: SERVICES
B16: C2.1 | C16: GENERAL REQUIREMENTS AND TRENCHING FOR SERVICES | D16: R0.00
B17: C2.2 | C17: DRY SERVICES | D17: R0.00
B18: C2.3 | C18: WET SERVICES | D18: R0.00
B19: C2.4 | C19: ENERGY AND OTHER SERVICES | D19: R0.00 | E19: =SUM(D16:D19) -> R0.00
B21: DRAINAGE
B22: C3.1 | C22: DRAINS | D22: ='C3.1'!I63 -> R0.00
B23: C3.2 | C23: CULVERTS | D23: ='C3.2'!I156 -> R0.00
B24: C3.3 | C24: CONCRETE KERBING AND CHANNELING, ASPHALT BERMS, CHUTES, DOWNPIPES, AS WELL AS CONCRETE, STONE PITCHED AND GABION LININGS FOR OPEN DRAINS | D24: ='C3.3'!I31 -> R0.00 | E24: =SUM(D22:D24) -> R0.00
B26: EARTHWORKS AND PAVEMENT LAYERS MATERIALS
B27: C4.1 | C27: BORROW MATERIALS | D27: R0.00
B28: C4.2 | C28: CUT MATERIALS | D28: ='C4.2'!I13 -> R0.00
B29: C4.3 | C29: EXISTING ROAD MATERIALS | D29: ='C4.3'!I22 -> R50,000.00
B30: C4.4 | C30: COMMERCIAL MATERIALS | D30: R0.00
B31: C4.5 | C31: ALTERNATIVE MATERIALS | D31: R0.00 | E31: =SUM(D27:D31) -> R50,000.00
B33: EARTHWORKS AND PAVEMENT LAYERS CONSTRUCTION
B34: C5.1 | C34: ROADBED | D34: R0.00
B35: C5.2 | C35: FILL | D35: ='C5.2'!I14 -> R0.00
B36: C5.3 | C36: ROAD PAVEMENT LAYERS | D36: R0.00
B37: C5.4 | C37: STABILISATION | D37: R0.00
B38: C5.5 | C38: RECONSTRUCTION OF PAVEMENT LAYERS | D38: R0.00 | E38: =SUM(D34:D38) -> R0.00
B40: CONCRETE LAYERS
B41: C6.1 | C41: PAVER LAID CONCRETE LAYERS | D41: R0.00
B42: C6.2 | C42: SEGMENTAL BLOCK PAVING LAYERS | D42: R0.00 | E42: =SUM(D41:D42) -> R0.00
B44: MAINTENANCE AND REPAIR CONCRETE LAYERS
B45: C7.1 | C45: REPLACEMENT OF EXISTING JOINT SEALANT | D45: R0.00
B46: C7.2 | C46: REPAIR TO CONCRETE PANELS AND CONCRETE ADJACENT TO UNCONTROLLED CRACKS AND EXISTING JOINTS | D46: R0.00
B47: C7.3 | C47: REMOVAL AND REINSTATEMENT OF EXISTING CONCRETE LAYERS | D47: R0.00
B48: C7.4 | C48: REINSTATEMENT OF SLAB SUPPORT BY GROUT INJECTION | D48: R0.00
B49: C7.5 | C49: REINSTATEMENT OF RIDING QUALITY | D49: R0.00
B50: C7.6 | C50: REINSTATEMENT OF SURFACE TEXTURE | D50: R0.00 | E50: =SUM(D45:D50) -> R0.00
B52: PRETREATMENT AND REPAIR EXISTING LAYERS
B53: C8.1 | C53: PRIME COAT | D53: R0.00
B54: C8.2 | C54: COVER SPRAYS, FOG SPRAYS AND REJUVENATION SPRAYS | D54: R0.00
B55: C8.3 | C55: TEXTURE TREATMENT | D55: R0.00
B56: C8.4 | C56: RUT AND/OR DEPRESSION CORRECTION | D56: R0.00
B57: C8.5 | C57: STANDARD CRACK SEALING | D57: R0.00
B58: C8.6 | C58: GEOSYNTHETIC CRACK SEALING | D58: R0.00
B59: C8.7 | C59: PLANING | D59: R0.00
B60: C8.8 | C60: PATCHING AND EDGE BREAK REPAIR | D60: R0.00
B61: C8.9 | C61: REPAIR OF SURFACE DEFECTS | D61: R0.00 | E61: =SUM(D53:D61) -> R0.00
B63: ASPHALT LAYERS
B64: C9.1 | C64: ASPHALT LAYERS | D64: ='C9.1'!I31 -> R0.00 | E64: =SUM(D64) -> R0.00
B66: SURFACE TREATMENTS
B67: C10.1 | C67: GENERAL REQUIREMENTS FOR SURFACE TREATMENTS | D67: R0.00 | E67: =SUM(D67) -> R0.00
B70: ANCILLIARY ROAD WORKS
B71: C11.1 | C71: PITCHING, STONEWORK, CAST IN SITU CONCRETE FOR PROTECTION AGAINST EROSION | D71: ='C11.1'!I16 -> R100,000.00
B72: C11.2 | C72: NON-STRUCTURAL GABIONS | D72: ='C11.2'!I33 -> R0.00
B73: C11.3 | C73: GUIDE BLOCKS AND KILOMETRE MARKERS | D73: R0.00
B74: C11.4 | C74: ROAD RESTRAINT SYSTEMS | D74: R0.00
B75: C11.5 | C75: FENCING | D75: R0.00
B76: C11.6 | C76: ROAD SIGNS | D76: R0.00
B77: C11.7 | C77: ROAD MARKINGS AND ROAD STUDS | D77: ='C11.7'!I29 -> R0.00
B78: C11.8 | C78: LANDSCAPING AND PLANTING PLANTS | D78: R0.00
B79: C11.9 | C79: FINISHING THE ROAD AND ROAD RESERVE AND TREATING OLD ROADS | D79: ='C11.9'!I7 -> R0.00 | E79: =SUM(D71:D79) -> R100,000.00
B81: GEOTECHNICAL
B82: C12.1 | C82: PILING | D82: R0.00
B83: C12.2 | C83: GROUND ANCHORS | D83: R0.00
B84: C12.3 | C84: GROUND IMPROVEMENT | D84: R0.00
B85: C12.4 | C85: LATERAL SUPPORT | D85: R0.00
B86: C12.5 | C86: SHOTCRETE | D86: R0.00
B87: C12.6 | C87: MECHANICALLY STABILISED EARTH WALLS AND GABIONS | D87: R0.00
B88: C12.7 | C88: TRENCHLESS METHODS | D88: R0.00
B89: C12.8 | C89: GROUND DRAINAGE | D89: R0.00
B90: C12.9 | C90: SLOPE PROTECTION MEASURES | D90: R0.00
B91: C12.10 | C91: HARD EXCAVATION BY BLASTING | D91: R0.00
B92: C12.11 | C92: GEOSYNTHETICS | D92: R0.00
B93: C12.12 | C93: CONSTRUCTION DEWATERING | D93: R0.00 | E93: =SUM(D82:D93) -> R0.00
B95: STRUCTURES
B96: C13.1 | C96: FOUNDATIONS | D96: R0.00
B97: C13.2 | C97: FALSEWORK, FORMWORK AND CONCRETE FINISH | D97: R0.00
B98: C13.3 | C98: STEEL REINFORCEMENT | D98: R0.00
B99: C13.4 | C99: CONCRETE | D99: R0.00
B100: C13.5 | C100: PRESTRESSING | D100: R0.00
B101: C13.6 | C101: BEARINGS | D101: R0.00
B102: C13.7 | C102: JOINTS | D102: R0.00
B103: C13.8 | C103: ANCILLARY STRUCTURAL ELEMENTS | D103: R0.00
B104: C13.9 | C104: STRUCTURAL STEELWORK FOR MINOR STRUCTURES | D104: R0.00
B105: C13.10 | C105: PAINTING OF MINOR STRUCTURES | D105: R0.00
B106: C13.11 | C106: STRUCTURAL STEELWORK FOR MAJOR STRUCTURES | D106: R0.00
B107: C13.12 | C107: STRUCTURAL STEEL PROTECTIVE TREATMENT OF MAJOR STRUCTURES | D107: R0.00
B108: C13.13 | C108: INCREMENTAL LAUNCHING OF BRIDGE DECKS | D108: R0.00
B109: C13.14 | C109: SPECIALIST STRUCTURES | D109: R0.00 | E109: =SUM(D96:D109) -> R0.00
B111: REPAIR AND REHABILITATION STRUCTURES
B112: C14.1 | C112: ACCESS FOR BRIDGE REHABILITATION | D112: R0.00
B113: C14.2 | C113: CORROSION SURVEY METHODS AND TESTING OF NEAR SURFACE CONCRETE PROPERTIES | D113: R0.00
B114: C14.3 | C114: DEMOLITION AND REMOVAL OF STRUCTURAL CONCRETE AND STEELWORK | D114: R0.00
B115: C14.4 | C115: SURFACE AND STRUCTURAL REPAIR OF CONCRETE MEMBERS | D115: R0.00
B116: C14.5 | C116: ANCHORING OF REINFORCEMENT, GROUTING AND CRACK INJECTION | D116: R0.00
B117: C14.6 | C117: SPRAYED CONCRETE FOR STRUCTURES | D117: R0.00
B118: C14.7 | C118: PROTECTIVE COATINGS AND TREATMENTS FOR CONCRETE | D118: R0.00
B119: C14.8 | C119: EXTERNAL BONDING OF STEEL AND CARBON FIBRE | D119: R0.00
B120: C14.9 | C120: REPAIR AND REPLACEMENT OF ANCILLARY STRUCTURAL ELEMENTS | D120: R0.00
B121: C14.10 | C121: JACKING OF BRIDGE STRUCTURES | D121: R0.00
B122: C14.11 | C122: REPAIR OF STEEL ELEMENTS | D122: R0.00 | E122: =SUM(D112:D122) -> R0.00
B124: QUALITY ASSURANCE
B125: C20.1 | C125: TESTING MATERIALS AND JUDGEMENT OF WORKMANSHIP | D125: ='C20.1'!I11 -> R4,900,000.00 | E125: =SUM(D125) -> R4,900,000.00
B127: SECTION D: STAKEHOLDER AND COMMUNITY LIAISON, AND TARGET LABOUR AND TARGETED ENTERPRISES UTILISATION AND DEVELOPMENT
B128: D1010 | C128: TRAINING, COACHING, GUIDANCE, MENTORING AND ASSISTANCE | D128: R0.00 | E128: =SUM(D128) -> R0.00
B130: Main Works
B131: A | C131: Main Works (Civils) | D131: =SUM(D7:D129) -> R6,088,000.00 | E131: =+D131 -> R6,088,000.00
B133: Electrical Works
B134: B | C134: Electrical Works | D134: ='Schedule B'!I6 -> R16,284,436.34 | E134: =SUM(D134) -> R16,284,436.34
C136: SUBTOTAL A (Sch A + B) | D136: =+E134+E131 -> R22,372,436.34
C138: Contract Skills Development Goal (CSDG: 0.25% of Subtotal A) | D138: =+D136*0.0025 -> R55,931.09
C139: The tenderer shall add allowance of 8% Rise and Fall and CPA | D139: =D136*0.08 -> R1,789,794.91
C141: SUBTOTAL B (Subtotal A + CSDG + CPA) | D141: =D136+D138+D139 -> R24,218,162.34
C143: 10% Contingency (of Subtotal B) | D143: =D141*0.1 -> R2,421,816.23
C145: SUBTOTAL C | D145: =D143+D141 -> R26,639,978.57
C147: VALUE ADDED TAX:
C148: 15% of Subtotal C | D148: =D145*0.15 -> R3,995,996.79
C150: TOTAL CARRIED TO C.1.1.1 : FORM OF OFFER (Subtotal C + VAT) | D150: =D145+D148 -> R30,635,975.36
C153: SIGNED BY TENDERER:

Sheet C1.2
B2: C1.2 | C2: GENERAL REQUIREMENTS AND PROVISIONS
B3: ITEM | E3: DESCRIPTION | F3: UNIT | G3: QTY | H3: RATE | I3: AMT
B4: C1.2.1 | C4: Environmental Management
C5: C1.2.1.1 | E5: General Compliance with environmental specifications | F5: month | G5: 12 | I5: =G5*H5 -> 0
B7: C1.2.5 | C7: Safety
C8: C1.2.5.1 | E8: Contractor's initial obligations in respect of the Occupational Health and Safety Act and the Construction Regulations | F8: Sum | G8: 1 | I8: =G8*H8 -> 0
C9: C1.2.5.2 | E9: Contractor's time related obligations in respect of the Health and Safety Act and the Construction Regulations | F9: month | G9: 12 | I9: 0
C10: C1.2.5.3 | E10: Provision of full time Construction Safety Officer | F10: month | G10: 12 | I10: =G10*H10 -> 0
C11: C1.2.5.4 | E11: Submission of the Health and Safety File | F11: L Sum | G11: 1 | I11: 0
B13: C1.2.8 | C13: Dayworks
C14: C1.2.8.1 | D14: Personnel
D15: (a) | E15: Labourer | F15: hour | G15: 120 | I15: =G15*H15 -> 0
D16: (e) | E16: Charge hand / supervisor | F16: hour | G16: 24 | I16: 0
D17: (f) | E17: Surveyor | F17: hour | G17: 8 | I17: 0
C18: C1.2.8.2 | D18: Construction equipment (specify size and/or model number)
D19: (b) | E19: 10 - 12 tonne vibratory roller | F19: hour | G19: 8 | I19: =G19*H19 -> 0
D20: (c) | E20: 16 tonne pneumatic roller | F20: hour | G20: 8 | I20: 0
D21: (e) | E21: Tractor loader backhoe (TLB) | F21: hour | G21: 16 | I21: 0
D22: (h) | E22: Plate compactor | F22: hour | G22: 24 | I22: 0
C23: C1.2.8.3 | D23: Vehicles (specify size)
D24: (a) | E24: Light delivery vehicle (LDV) | F24: km | G24: 5000 | I24: =G24*H24 -> 0
D25: (a)-alt | E25: Light delivery vehicle (LDV) - equipment rate | F25: hour | G25: 16 | I25: 0
D26: (b) | E26: Flatbed truck | F26: km | G26: 1000 | I26: 0
D27: (c) | E27: 8 - 10 tonne tipper truck | F27: hour | G27: 32 | I27: 0
C28: C1.2.8.4 | D28: Materials
D29: (a) | E29: Procurement of materials | F29: Prov Sum | G29: 1 | H29: R58,000.00 | I29: =G29*H29 -> R58,000.00
D30: (b) | E30: Contractor's handling costs, profit and all other charges in respect of item C1.2.8.4(a) | F30: % | G30: =I29 -> R58,000.00 | I30: 0
B32: PC1.2.10 | E32: Dispute Adjudication Board (DAB)
C33: C1.2.10.1 | E33: Employer’s contribution to DAB (50%) | F33: PC Sum | G33: 1 | H33: R500,000.00 | I33: =H33*G33 -> R500,000.00
B35: PC1.2.11 | D35: Permits and Courses
C36: C1.2.11 | E36: Airside induction courses and permits | F36: Lump Sum | G36: 1 | I36: =G36*H36 -> 0
C37: C1.2.12 | E37: Provision for CIDB B.U.I.L.D. Program | F37: month | G37: 12 | I37: =G37*H37 -> 0
B39: TOTAL CARRIED FORWARD TO SUMMARY | I39: =SUM(I4:I38) -> R558,000.00

Sheet C1.3
B2: C1.3 | C2: CONTRACTOR’S SITE ESTABLISHMENT AND GENERAL OBLIGATIONS
B3: ITEM | E3: DESCRIPTION | F3: UNIT | G3: QTY | H3: RATE | I3: AMT
B4: PC1.3.1 | C4: The Contractor's general obligations
C5: C1.3.1.1 | E5: Fixed obligations | F5: L/sum | G5: 1 | I5: =G5*H5 -> 0
C6: C1.3.1.2 | E6: Value-related obligations | F6: L/sum | G6: 1 | I6: 0
C7: C1.3.1.3 | E7: Time-related obligations
D8: (b) | E8: Time-related obligations | F8: Month | G8: 12 | I8: 0
D9: (c) | E9: Contractor's obligations in respect of compliance and dealing with unforeseen | F9: month | G9: 12 | I9: 0
D10: (d) | E10: Provision of a full time traffic safety and construction safety officer | F10: month | G10: 12 | I10: 0
D11: (e) | E11: Submission of Health and Safety File | F11: Sum | G11: 1 | I11: 0
D12: (f) | E12: Preparation and submission of as-built drawings, manuals and operating instructions | F12: Sum | G12: 1 | I12: 0
D13: (g) | E13: A new 50 mm (compacted) Stone Mastic Asphalt (SMA) overlay shall be constructed at full runway width. The SMA shall be a gap-graded, stone-on-stone mix with NMPS 14 mm, and shall be designed and approved in accordance with NAPA guidance, AASHTO R46, and Sabita Manual 35. The binder shall be PG 58E-22 polymer-modified, and the mix design shall comply with Sabita Manual 35, Design Level III requirements. | F13: L/sum | G13: 1 | I13: 0
D14: (h) | E14: Mix design for a sand skeletal gap-graded asphalt mix, as defined, to be placed in a 50 mm compacted layer using an AP1 modified binder, Design Level II, and NMPS 14 mm, and to be paver-laid in accordance with the approved working mix. | F14: L/sum | G14: 1 | I14: 0
B15: C1.3.2 | E15: Contract sign boards | F15: No. | G15: 1 | I15: 0
B16: TOTAL CARRIED FORWARD TO SUMMARY | I16: =SUM(I5:I15) -> 0

Sheet C1.4
B2: C1.4 | C2: FACILITIES FOR THE ENGINEER
B3: ITEM | E3: DESCRIPTION | F3: UNIT | G3: QTY | H3: RATE | I3: AMT
B4: C1.4.1 | C4: Site accommodation
C5: C1.4.1.1 | E5: Offices (interior floor space only) | F5: m² | G5: 60 | I5: =G5*H5 -> 0
C6: C1.4.1.4 | E6: Roofs over open concrete working floors (Gate 6A) | F6: m² | G6: 30 | I6: 0
C7: C1.4.1.5 | E7: Stores | F7: m² | G7: 12 | I7: 0
C8: C1.4.1.6 | E8: Car ports | F8: No. | G8: 2 | I8: 0
C9: C1.4.1.7 | E9: Ablution units | F9: m² | G9: 10 | I9: 0
C10: C1.4.1.9 | E10: Kitchen (interior floor space only) | F10: m² | G10: 10 | I10: 0
C11: C1.4.1.13 | E11: Rented housing paid for by the Contractor | F11: Prov sum | G11: 1 | H11: =12*2*20000 -> R480,000.00 | I11: R480,000.00
C12: C1.4.1.14 | E12: Contractor's handling costs, profit and all other charges in respect of item C1.4.1.13 | F12: % | G12: =I11 -> R480,000.00
C13: C1.4.1.15 | E13: Steel containers at Gate 6A (6 m x 2,4 m x 2,6 m including two windows and doors) | F13: No | G13: 1 | I13: 0
B14: C1.4.2 | C14: Items measured by area
C15: C1.4.2.1 | E15: Shelving as specified complete with brackets | F15: m² | G15: 4 | I15: =G15*H15 -> 0
C16: C1.4.2.7 | E16: Venetian blinds | F16: m² | G16: 12 | I16: 0
C17: C1.4.2.8 | E17: Notice boards as specified | F17: m² | G17: 3 | I17: 0
C18: C1.4.2.9 | E18: White board (1.5m x 1.2m) | F18: No. | G18: 2 | I18: 0
B19: C1.4.3 | C19: Items measured by number
C20: C1.4.3.2 | E20: Chairs | F20: No. | G20: 10 | I20: =G20*H20 -> 0
C21: C1.4.3.5 | E21: Desks, complete with drawers and locks | F21: No. | G21: 2 | I21: 0
C22: C1.4.3.7 | E22: Drawing table | F22: No. | G22: 1 | I22: 0
C23: C1.4.3.8 | E23: Conference table | F23: No. | G23: 1 | I23: 0
C24: C1.4.3.11 | E24: General-purpose steel cupboards with shelves | F24: No. | G24: 2 | I24: 0
C25: C1.4.3.13 | E25: 220/250 volt power points | F25: No. | G25: 6 | I25: 0
C26: C1.4.3.15 | E26: Double 80 watt fluorescent light fittings complete with ballast and tubes | F26: No. | G26: 5 | I26: 0
C27: C1.4.3.23 | E27: Fire extinguishers, 9,0 kg,all purpose dry powder type, complete, mounted on wall with brackets | F27: No. | G27: 3 | I27: 0
C28: C1.4.3.24 | E28: Air conditioning units with 2,2 kW minimum capacity, mounted and with own power connection | F28: No. | G28: 2 | I28: 0
C29: C1.4.3.39 | E29: Refrigerators | F29: No. | G29: 1 | I29: 0
C30: C1.4.3.40 | E30: Electric kettle | F30: No. | G30: 1 | I30: 0
C31: C1.4.3.41 | E31: Flood lights complete with poles and 500W (min) globes | F31: No. | G31: 2 | I31: 0
C32: C1.4.3.42 | E32: Water dispenser | F32: No. | G32: 1 | I32: 0
C33: C1.4.3.43 | E33: Steel drawing rack | F33: No. | G33: 1 | I33: 0
C34: C1.4.3.44 | E34: Table (1.0 m2) | F34: No. | G34: 1 | I34: 0
C35: C1.4.3.45 | E35: ACSA approved lime coloured reflective safety jackets (with lettering) | F35: No. | G35: 4 | I35: 0
C36: C1.4.3.46 | E36: Rechargeable 500 000 candlelight halogen lamps | F36: No. | G36: 3 | I36: 0
C37: C1.4.3.47 | E37: Two-way hand held radio VHF/AM Dittel FSG5 complete with charger, carrying bag with strap and adapter cable | F37: No. | G37: 2 | I37: =G37*H37 -> 0
C38: C1.4.3.48 | E38: Provision of multifunction printing facilities (mapped from Colto B14.10) | F38: month | G38: 12 | I38: =G38*H38 -> 0
B39: C1.4.4 | C39: Prime cost items
C40: C1.4.4.5 | E40: The provision of internet connectivity and WiFi data for Engineer’s site staff | F40: Sum | G40: 1 | I40: =G40*H40 -> 0
B42: C1.4.5 | C42: Services at site offices, laboratories and site accommodation
C43: C1.4.5.1 | E43: Services at office and laboratories: Fixed costs | F43: Sum | G43: 1 | I43: =G43*H43 -> 0
C44: C1.4.5.2 | E44: Services at office and laboratories: Running costs | F44: month | G44: 12 | I44: =G44*H44 -> 0
B45: TOTAL CARRIED FORWARD TO SUMMARY | I45: =SUM(I5:I44) -> R480,000.00

Sheet C1.5
B2: C1.5 | E2: ACCOMMODATION OF TRAFFIC
B3: ITEM | E3: DESCRIPTION | F3: UNIT | G3: QTY | H3: RATE | I3: AMT
B4: C1.5.7 | C4: Temporary traffic control facilities
C5: C1.5.7.1 | D5: Delineators including mounting bases and ballast:
D6: (b) | E6: Delineators (TW401 & TN402) (250 mm x 1,000 mm) Mounted back to back (was: Double sided, reversible left or right (size indicated)) | F6: No | G6: 200 | I6: =H6*G6 -> 0
C7: C1.5.7.2 | E7: Traffic cones (750 mm) (was: Traffic cones, minimum height 750mm) | F7: No | G7: 20 | I7: 0
C8: C1.5.7.3 | E8: Flagmen | F8: manday | G8: 300 | I8: 0
C9: C1.5.7.5 | D9: Provision of illuminated traffic signs:
D10: (a) | E10: Amber flicker lights (was: Sign mounted flashing amber lights (2 lights with the specified power supply) mounted on a backing board which is:) | F10: No | G10: 14 | I10: =H10*G10 -> 0
B11: (Note: COTO template specifies board sizes, Colto BOQ does not. Used generic description from Colto.)
C12: C1.5.7.6 | E12: Relocation of traffic control facilities | F12: Lump Sum | G12: 1 | I12: =H12*G12 -> 0
C13: C1.5.7.7 | E13: Manufacturing and supply of aircraft barriers | F13: No | G13: 6 | I13: 0
C14: C1.5.7.8 | E14: Moveable barricade (red and white alternating) HDPE plastic barrier | F14: No | G14: 20 | I14: 0
C15: C1.5.7.9 | E15: Placing, repositioning, and final removal of vehicle and aircraft barriers upon completion of shifts | F15: Lump Sum | G15: 1 | I15: 0
C16: C1.5.7.10 | E16: Runway Closure Marker | F16: No | G16: 2 | I16: 0
B17: C1.5.12 | C17: Additional traffic accommodation facilities ordered by the Engineer:
C18: C1.5.7.12 | E18: Provision of lighting on site to work areas | F18: Lump Sum | G18: 1 | I18: =H18*G18 -> 0
C19: C1.5.7.13 | E19: Provision of lighting on site to work areas as requested by the Engineer | F19: hours | G19: 600 | I19: 0
B20: TOTAL CARRIED FORWARD TO SUMMARY | I20: =SUM(I6:I19) -> 0

Sheet C1.6
B2: C1.6 | E2: CLEARING AND GRUBBING
B3: ITEM | E3: DESCRIPTION | F3: UNIT | G3: QTY | H3: RATE | I3: AMT
B4: C1.6.11 | C4: Cleaning out of hydraulic structures
C5: C1.6.11.1 | E5: Pipes, box culverts, and side drains or grid inlets - RWY Works | F5: m³ | G5: 20 | I5: =H5*G5 -> 0
C6: C1.6.11.2 | E6: Pipes, box culverts, and side drains or grid inlets - TWY Works | F6: m³ | G6: 20 | I6: 0
C7: C1.6.11.3 | E7: Pipes, box culverts, and side drains or grid inlets - GA Works | F7: m³ | G7: 20 | I7: 0
B8: C1.6.12 | C8: Clearing, excavating, and spoiling existing material from site camp
C9: C1.6.12.1 | E9: Bituminous material on stockpile - RWY Works | F9: m³ | G9: 600 | I9: =H9*G9 -> 0
C10: C1.6.12.2 | E10: Milled material - RWY Works | F10: m³ | G10: 350 | I10: 0
C11: C1.6.12.3 | E11: Bituminous material on stockpile - TWY Works | F11: m³ | G11: 600 | I11: 0
C12: C1.6.12.4 | E12: Milled material - TWY Works | F12: m³ | G12: 350 | I12: 0
C13: C1.6.12.5 | E13: Bituminous material on stockpile - GA Works | F13: m³ | G13: 50 | I13: 0
C14: C1.6.12.6 | E14: Milled material - GA Works | F14: m³ | G14: 50 | I14: 0
B15: C1.6.13 | C15: Clearing, excavating, and removal of stockpiled materials
C16: C1.6.13.1 | E16: Bituminous material on stockpile - RWY Works | F16: m³ | G16: 120 | I16: =H16*G16 -> 0
C17: C1.6.13.2 | E17: Milled material - RWY Works | F17: m³ | G17: 2079 | I17: 0
C18: C1.6.13.3 | E18: Bituminous material on stockpile - TWY Works | F18: m³ | G18: 120 | I18: 0
C19: C1.6.13.4 | E19: Milled material - TWY Works | F19: m³ | G19: 2079 | I19: 0
B20: TOTAL CARRIED FORWARD TO SUMMARY | I20: =SUM(I5:I19) -> 0

Sheet C3.1
B2: C3.1 | E2: DRAINS & SUB-SOILS
B3: ITEM | E3: DESCRIPTION | F3: UNIT | G3: QTY | H3: RATE | I3: AMT
I4: =IF(G4="","",IF(OR(F4="PC Sum",F4="Prov Sum"),G4,G4*H4)) -> 
B5: C3.1.1 | E5: EXCAVATION FOR OPEN DRAINS:
C7: C3.1.1.1 | E7: Excavating all material situated within the following depth ranges below the surface level using conventional methods:
D9: (a) | E9: 0m to 1,5m | F9: m³ | G9: 4800 | I9: =H9*G9 -> 0
C11: C3.1.1.2 | E11: Extra over sub-item C3.1.1.1 for excavation in hard and boulder material, irrespective of depth | F11: m³ | G11: 800 | I11: =H11*G11 -> 0
B13: C3.1.5 | E13: IMPERMEABLE BACKFILLING TO SUBSOIL DRAINAGE SYSTEMS:
C15: C3.1.5.1 | E15: Un-stabilised natural gravel obtained from approved sources on the site | F15: m³ | G15: 1000 | I15: =H15*G15 -> 0
C17: C3.1.5.2 | E17: G5 material obtained from commercial sources, stabilisation with 4,0% CEM II B-M (V-S) 32,5N | F17: m³ | G17: 200 | I17: =H17*G17 -> 0
B19: C3.1.6 | E19: CONSTRUCTION OF BANKS AND DYKES:
C21: C3.1.6.1 | E21: Banks and dykes using conventional methods | F21: m³ | G21: 1300 | I21: =H21*G21 -> 0
B23: C3.1.7 | E23: NATURAL PERMEABLE MATERIAL IN SUBSOIL DRAINAGE SYSTEMS (APPROVED CRUSHED STONE):
C25: C3.1.7.1 | E25: Crushed stone obtained from approved sources on the site (Coarse grade - 19.0mm) | F25: m³ | G25: 1100 | I25: =H25*G25 -> 0
B27: C3.1.8 | E27: NATURAL PERMEABLE MATERIAL IN SUBSOIL DRAINAGE SYSTEMS (APPROVED NATURAL SAND):
C29: C3.1.8.1 | E29: Natural sand obtained from approved sources (Medium grade > 2.00mm, source) | F29: m³ | G29: 1800 | I29: =H29*G29 -> 0
B31: C3.1.9 | E31: PIPES IN SUBSOIL DRAINAGE SYSTEMS:
C33: C3.1.9.1 | E33: U-PVC pipes and fittings, normal duty, complete with couplings
D35: (a) | E35: 150mm Slotted | F35: m | G35: 4000 | I35: =H35*G35 -> 0
D37: (b) | E37: 150mm unslotted | F37: m | G37: 200 | I37: =H37*G37 -> 0
I38: =IF(G38="","",IF(OR(F38="PC Sum",F38="Prov Sum"),G38,G38*H38)) -> 
B39: C3.1.11 | E39: Geotextile (Grade 5) | F39: m² | G39: 8500 | I39: =H39*G39 -> 0
B41: C3.1.14 | E41: CAPS FOR SUBSOIL DRAIN PIPES: | I41: =IF(G41="","",IF(OR(F41="PC Sum",F41="Prov Sum"),G41,G41*H41)) -> 
I42: =IF(G42="","",IF(OR(F42="PC Sum",F42="Prov Sum"),G42,G42*H42)) -> 
C43: C3.1.14.1 | E43: Concrete caps | F43: No. | G43: 10 | I43: =H43*G43 -> 0
B45: C3.1.16 | E45: LOADING AND HAULING OF MATERIAL IN EXCESS OF 1,0 KM | F45: m³ - km | G45: 43500 | I45: =H45*G45 -> 0
I46: =IF(G46="","",IF(OR(F46="PC Sum",F46="Prov Sum"),G46,G46*H46)) -> 
B47: C3.1.18 | E47: BACKFILLING OF DRAINS WITH SELECTED MATERIAL COMPACTED TO 93% OF MDD PRIOR TO CONSTRUCTION OF CONCRETE LINING AND/OR STONE PITCHED LINING | F47: m³ | G47: 1870 | I47: =H47*G47 -> 0
B49: C3.1.22 | E49: TEST FLUSHING OF SUBSOIL DRAIN PIPE SYSTEMS | F49: No. | G49: 10 | I49: =H49*G49 -> 0
B51: C3.1.23 | E51: SUBSOIL DRAIN OUTLET MARKER | F51: No. | G51: 10 | I51: =H51*G51 -> 0
B53: C11.8.4 | E53: Grassing:
C55: C11.8.4.3 | E55: Hydroseeding:
D57: (a) | E57: Providing an approved seed mixture for hydroseeding | F57: kg | G57: 6300 | I57: =H57*G57 -> 0
D59: (b) | E59: Providing an approved mulch | F59: kg | G59: 24900 | I59: =H59*G59 -> 0
D61: (c) | E61: Hydroseeding | F61: ha | G61: 200 | I61: =H61*G61 -> 0
B63: Total Carried Forward To Summary | I63: =SUM(I4:I62) -> 0

Sheet C3.2
B2: C3.2 | E2: CULVERTS
B3: ITEM | E3: DESCRIPTION | F3: UNIT | G3: QTY | H3: RATE | I3: AMT
I4: =IF(G4="","",IF(OR(F4="PC Sum",F4="Prov Sum"),G4,G4*H4)) -> 
B5: C3.2.1 | E5: Excavation for culvert structures:
C7: C3.2.1.1 | E7: Excavating in all material situated within the following depth ranges below the surface level:
D9: (a) | E9: 0m to 1,5m | F9: m³ | G9: 6720 | I9: =H9*G9 -> 0
D11: (b) | E11: Exceeding 1,5m and up to 3,0m | F11: m³ | G11: 710 | I11: =H11*G11 -> 0
C13: C3.2.1.4 | E13: Extra over sub-item C3.2.1.1 for excavation in hard or boulder material, irrespective of depth | F13: m³ | G13: 400 | I13: =H13*G13 -> 0
B15: C3.2.2 | E15: Backfilling
C17: C3.2.2.1 | E17: Using the excavated material compacted to 95% of modified AASHTO density | F17: m³ | G17: 5980 | I17: =H17*G17 -> 0
C19: C3.2.2.2 | E19: Using imported selected material:
D21: (a) | E21: From commercial sources, G5 quality | F21: m³ | G21: 580 | I21: =H21*G21 -> 0
D23: (b) | E23: From sources on site, G5 quality | F23: m³ | G23: 145 | I23: =H23*G23 -> 0
C26: C3.2.2.3 | E26: Extra over sub-items C3.2.2.1 and C3.2.2.2 for soil cement backfilling
D28: (a) | E28: With wet mixture of 5% cement | F28: m³ | G28: 30 | I28: =H28*G28 -> 0
B30: C3.2.3 | E30: Concrete pipe culverts:
C32: C3.2.3.2 | E32: On Class B bedding
D34: (a) | E34: 350mm dia. Class 100D | F34: m | G34: 70 | I34: =H34*G34 -> 0
D36: (b) | E36: 450mm dia. Class 100D | F36: m | G36: 10 | I36: =H36*G36 -> 0
D38: (c) | E38: 600mm dia. Class 100D | F38: m | G38: 690 | I38: =H38*G38 -> 0
D40: (d) | E40: 900mm dia. Class 100D | F40: m | G40: 10 | I40: =H40*G40 -> 0
B42: C3.2.5 | E42: Rectangular culverts with prefabricated elements: | I42: =IF(G42="","",IF(OR(F42="PC Sum",F42="Prov Sum"),G42,G42*H42)) -> 
C44: C3.2.5.1 | E44: Prefabricated portal culverts; wall and roof combination (size and type indicated)
D45: (a) | E45: 600mm x 450mm Portal 150S | F45: m | G45: 330 | I45: =H45*G45 -> 0
D47: (b) | E47: 600mm x 600mm Portal 150S | F47: m | G47: 430 | I47: =H47*G47 -> 0
D49: (c) | E49: 900mm x 600mm Portal 150S | F49: m | G49: 520 | I49: =H49*G49 -> 0
D51: (d) | E51: 1200mm x 600mm Portal 150S | F51: m | G51: 600 | I51: =H51*G51 -> 0
D53: (f) | E53: 1500mm x 600mm Portal 150S | F53: m | G53: 90 | I53: =H53*G53 -> 0
B55: C3.2.7 | E55: Cast in situ concrete and formwork: | I55: =IF(G55="","",IF(OR(F55="PC Sum",F55="Prov Sum"),G55,G55*H55)) -> 
C57: C3.2.7.2 | E57: In complete in situ floor slabs for rectangular culverts, manholes and catchpits including formwork, joints and Class U2 surface finish (Class C24/30-20 concrete) (installed at a standard depth of 1,0m) | F57: m³ | G57: 1 | I57: =H57*G57 -> 0
C59: C3.2.7.5 | E59: In inlet and outlet structures including kerbs, chutes and downpipes, skewed ends, catchpits, manholes, thrust and anchor blocks, excluding formwork but including Class U2 surfacing finish (Class C24/30-20 concrete) | F59: m³ | G59: 10 | I59: =H59*G59 -> 0
C61: C3.2.7.6 | E61: Formwork of concrete under items C3.2.7.3 to 5 above
D63: (a) | E63: Vertical formwork for F1 surface finish | F63: m² | G63: 3 | I63: =H63*G63 -> 0
D65: (b) | E65: Vertical formwork for F2 surface finish | F65: m² | G65: 30 | I65: =H65*G65 -> 0
B67: C3.2.10 | E67: Reinforcement:
C69: C3.2.10.1 | E69: Mild steel bars | F69: t | G69: 1 | I69: =H69*G69 -> 0
C71: C3.2.10.2 | E71: High-tensile steel bars | F71: t | G71: 1 | I71: =H71*G71 -> 0
C73: C3.2.10.3 | E73: Welded steel fabric | F73: kg | G73: 300 | I73: =H73*G73 -> 0
B75: C3.2.12 | E75: Demolition of concrete members or elements:
C77: C3.2.12.1 | E77: Full member or element
D79: (c) | E79: Inlet Structures | F79: m³ | G79: 5 | I79: =H79*G79 -> 0
D81: (d) | E81: Outlet Structures | F81: m³ | G81: 5 | I81: =H81*G81 -> 0
B83: C3.2.13 | E83: Removing and re-laying existing culverts:
C85: C3.2.13.1 | E85: Removing and stacking existing culverts for re-use
D87: (a) | E87: 90mm diameter pipe | F87: m | G87: 120 | I87: =H87*G87 -> 0
D89: (c) | E89: 160mm diameter pipe | F89: m | G89: 50 | I89: =H89*G89 -> 0
D91: (d) | E91: 300mm diameter pipe | F91: m | G91: 190 | I91: =H91*G91 -> 0
D93: (e) | E93: 350mm diameter pipe | F93: m | G93: 250 | I93: =H93*G93 -> 0
D95: (f) | E95: 450mm diameter pipe | F95: m | G95: 200 | I95: =H95*G95 -> 0
D97: (g) | E97: 600mm diameter pipe | F97: m | G97: 130 | I97: =H97*G97 -> 0
D99: (h) | E99: 750mm diameter pipe | F99: m | G99: 10 | I99: =H99*G99 -> 0
I100: =IF(G100="","",IF(OR(F100="PC Sum",F100="Prov Sum"),G100,G100*H100)) -> 
D101: (i) | E101: 900mm diameter pipe | F101: m | G101: 10 | I101: =H101*G101 -> 0
D103: (j) | E103: 600mm x 600mm Portal | F103: m | G103: 10 | I103: =H103*G103 -> 0
B105: C3.2.15 | E105: Manholes and catch pits, with prefabricated elements | I105: =IF(G105="","",IF(OR(F105="PC Sum",F105="Prov Sum"),G105,G105*H105)) -> 
C107: C3.2.15.2 | E107: Prefabricated roofs
D109: (a) | E109: Stormwater Manhole covers | F109: No | G109: 22 | I109: =H109*G109 -> 0
I110: =IF(G110="","",IF(OR(F110="PC Sum",F110="Prov Sum"),G110,G110*H110)) -> 
D111: (b) | E111: Kerb inlet covers | F111: No | G111: 12 | I111: =H111*G111 -> 0
D113: (c) | E113: Grid Inlet Covers | F113: No. | G113: 15 | I113: =H113*G113 -> 0
B115: C3.2.16 | E115: Brickwork (Engineering bricks) | I115: =IF(G115="","",IF(OR(F115="PC Sum",F115="Prov Sum"),G115,G115*H115)) -> 
C117: C3.2.16.2 | E117: 230 mm thick | F117: m² | G117: 300 | I117: =H117*G117 -> 0
I118: =IF(G118="","",IF(OR(F118="PC Sum",F118="Prov Sum"),G118,G118*H118)) -> 
C119: C3.2.16.3 | E119: 345 mm thick | F119: m² | G119: 70 | I119: =H119*G119 -> 0
B121: C3.2.17 | E121: Plaster | F121: m² | G121: 350 | I121: =H121*G121 -> 0
B124: C3.2.18 | E124: Benching | I124: =IF(G124="","",IF(OR(F124="PC Sum",F124="Prov Sum"),G124,G124*H124)) -> 
B126: C3.2.18 | E126: Plaster | F126: m³ | G126: 10 | I126: =H126*G126 -> 0
B128: C3.2.19 | E128: Benching | I128: =IF(G128="","",IF(OR(F128="PC Sum",F128="Prov Sum"),G128,G128*H128)) -> 
C130: C3.2.19.1 | E130: Manhole frames | F130: No | G130: 28 | I130: =H130*G130 -> 0
C132: C3.2.19.4 | E132: Manhole covers or gratings | F132: No | G132: 28 | I132: =H132*G132 -> 0
C134: C3.2.19.7 | E134: Step irons | F134: No | G134: 198 | I134: =H134*G134 -> 0
B136: C3.2.20 | E136: Anchor for pipes (1.5m x 3.5kg/m steel) H-section as per drawing | F136: No. | G136: 8 | I136: =H136*G136 -> 0
I137: =IF(G137="","",IF(OR(F137="PC Sum",F137="Prov Sum"),G137,G137*H137)) -> 
B138: C3.2.22 | E138: Cutting of concrete pipes:
D140: (a) | E140: 600mm diameter pipe | F140: No. | G140: 2 | I140: =H140*G140 -> 0
D142: (c) | E142: 900mm diameter pipe | F142: No. | G142: 2 | I142: =H142*G142 -> 0
D144: (c) | E144: 900mm x 600mm Portal | F144: No. | G144: 2 | I144: =H144*G144 -> 0
D146: (d) | E146: 1500mm x 600mm Class | F146: No. | G146: 2 | I146: =H146*G146 -> 0
B148: C3.2.24 | E148: Compaction of bedding for inlets, outlets, manholes and catchpits:
C150: C3.2.24.1 | E150: Preparation and compaction of in situ bedding material to 90% of MDD (150mm depth) | F150: m³ | G150: 170 | I150: =H150*G150 -> 0
C152: C3.2.24.2 | E152: Extra-over sub-item C3.2.24.1 for compaction to 93% of MDD, 150 mm thick layer | F152: m³ | G152: 70 | I152: =H152*G152 -> 0
B154: PC3.2.28 PC3.2.6.1 | E154: Waterproofing of prefabricated culvert joints with a 500 mm wide composite membrane strip consisting of rubberized asphalt and cross-laminated high-density polyethylene film | F154: m | G154: 2750 | I154: =H154*G154 -> 0
B156: TOTAL CARRIED FORWARD TO SUMMARY | I156: =SUM(I4:I155) -> 0

Sheet C3.3
B2: C3.3 | E2: ARMOFLEX LINING
B3: ITEM | E3: DESCRIPTION | F3: UNIT | G3: QTY | H3: RATE | I3: AMT
I4: =IF(G4="","",IF(OR(F4="PC Sum",F4="Prov Sum"),G4,G4*H4)) -> 
B5: C3.3.8 | E5: Linings for open drains:
C7: PC3.3.8.1 | E7: Armoflex blocks
D9: (a) | E9: Armoflex lining for open drains, including preparation of surface, trimming, bedding, installation of Armoflex, anchoring, and all necessary fittings and overlaps complete as specified | F9: m2 | G9: 13000.00 | I9: =H9*G9 -> 0
D11: (b) | E11: Supply and install geotextile membrane | F11: m2 | G11: 13000.00 | I11: =H11*G11 -> 0
B13: C3.3.16 | E13: Demolition and removal of existing kerbs and/or channel: | I13: =IF(G13="","",IF(OR(F13="PC Sum",F13="Prov Sum"),G13,G13*H13)) -> 
I14: =IF(G14="","",IF(OR(F14="PC Sum",F14="Prov Sum"),G14,G14*H14)) -> 
D15: (a) | E15: Plain concrete (including existing side drains, and kerb/channel combinations) | F15: m³ | G15: 5.00 | I15: =H15*G15 -> 0
D17: (b) | E17: Breaking and removing existing concrete drain outlet structures | F17: m³ | G17: 5.00 | I17: =H17*G17 -> 0
I18: =IF(G18="","",IF(OR(F18="PC Sum",F18="Prov Sum"),G18,G18*H18)) -> 
C19: C3.3 3.1.18 | E19: Backfilling of drains with selected material compacted to 93% of MDD prior to construction of concrete lining and/or stone pitched lining | F19: m³ | G19: 1870.00 | I19: =H19*G19 -> 0
B21: C1.7.1 | E21: LOADING: | I21: =IF(G21="","",IF(OR(F21="PC Sum",F21="Prov Sum"),G21,G21*H21)) -> 
C23: C1.7.1.2 | E23: Loading from heaps or windrows using machines and/some hand labour where necessary | F23: m³ | G23: 1870.00 | I23: =H23*G23 -> 0
B25: C1.7.2 | E25: HAULING:
C27: C1.7.2.2 | E27: Hauling material to spoil and off-loading it at a designated spoil or stockpile area:
D29: (b) | E29: Soil and gravel material | F29: m³ -km | G29: 1870.00 | I29: =H29*G29 -> 0
B31: Total Carried Forward To Summary | I31: =SUM(I4:I30) -> 0

Sheet C4.2
B2: C4.2 | E2: CUT MATERIALS
B3: ITEM | E3: DESCRIPTION | F3: UNIT | G3: QTY | H3: RATE | I3: AMT
B5: C4.2.8 | E5: Excavate material to spoil in sites designated by the Employer, material obtained from
C6: C4.2.8.1 | E6: Cut to spoil: Soft excavation | F6: m3 | G6: 6,000.00 | I6: =H6*G6 -> 0
C7: C4.2.8.4 | E7: Cut to spoil: Intermediate excavation (was: Hard excavation (other than by blasting)) | F7: m3 | G7: 1,500.00 | I7: 0
C8: C4.2.8.4 | E8: Cut to spoil: Hard excavation (was: Hard excavation (other than by blasting)) | F8: m3 | G8: 500.00 | I8: 0
B9: C4.2.12 | E9: Finishing the side slopes
C10: C4.2.12.1 | E10: Cuttings:
D11: (a) | E11: Finishing off cut slopes (was: In soft material) | F11: m3 | G11: 6,000.00 | I11: =H11*G11 -> 0
B13: TOTAL CARRIED FORWARD TO SUMMARY | I13: =SUM(I5:I12) -> 0

Sheet C4.3
B2: C4.3 | E2: EXISTING ROAD MATERIALS
B3: ITEM | E3: DESCRIPTION | F3: UNIT | G3: QTY | H3: RATE | I3: AMT
B4: C4.3.2 | C4: Cleaning the existing road surface
C5: C4.3.2.1 | E5: Removal of rubber deposits by water blasting | F5: Prov Sum | G5: 1.00 | H5: R50,000.00 | I5: =H5*G5 -> R50,000.00
C6: C4.3.2.2 | E6: Handling cost and profit in respect of item C4.3.2.1 (for rubber removal) | F6: % | G6: =I5 -> 50,000.00 | I6: =H6*G6 -> 0
B7: C4.3.6 | C7: Milling and removal of existing asphalt layers with an average milling depth (Contractor takes ownership)
C8: C4.3.6 | E8: Milling and removal of existing asphalt layers with an average milling depth (Contractor takes ownership)
C9: C4.3.6.1 | D9: (a) | E9: Milling out existing bituminous material: At full width 50 mm Milling - RWY Works | F9: m³ | G9: 5,000.00 | I9: =H9*G9 -> 0
C10: C4.3.6.1 | D10: (b) | E10: Milling out existing bituminous material (50 mm) - TWY Works (ALPHA) | F10: m³ | G10: 3,000.00 | I10: 0
C11: C4.3.6.1 | D11: (c) | E11: Milling out existing bituminous material: Patches (50 mm) - TWY Works (ALPHA 1) | F11: m³ | G11: 220.00 | I11: =H11*G11 -> 0
C12: C4.3.6.1 | D12: (d) | E12: Milling out existing bituminous material (50 mm) - TWY Works (ALPHA 2) | F12: m³ | G12: 230.00 | I12: =H12*G12 -> 0
C13: C4.3.6.1 | D13: (e) | E13: Milling out existing bituminous material (50 mm) - TWY Works (ALPHA 3) | F13: m³ | G13: 100.00 | I13: 0
C14: C4.3.6.1 | D14: (f) | E14: Milling out existing bituminous material: Patches (50 mm) - TWY Works (ALPHA 4) | F14: m³ | G14: 150.00 | I14: 0
C15: C4.3.6.1 | D15: (g) | E15: Milling out existing bituminous material: Patches (50 mm) - TWY Works (ECHO) | F15: m³ | G15: 35.00 | I15: 0
C16: C4.3.6.1 | D16: (h) | E16: Milling out existing bituminous material: Patches on GA (50 mm) - GA Works | F16: m³ | G16: 300.00 | I16: 0
C17: C4.3.6.2 | D17: (a) | E17: Milling out existing bituminous material (100 mm) - RUNWAY | F17: m³ | G17: 2,000.00 | I17: 0
C18: C4.3.6.2 | D18: (b) | E18: Milling out existing bituminous material (100 mm) - TWY Works (ALPHA 3) | F18: m³ | G18: 150.00 | I18: 0
B19: C4.3.15 | C19: Ancillary Works
C20: C4.3.15.1 | E20: Preparing stockpile sites - RWY Works | F20: m² | G20: 10,000.00 | I20: =H20*G20 -> 0
C21: C4.3.15.2 | E21: Preparing stockpile sites - TWY Works | F21: m² | G21: 10,000.00 | I21: 0
B22: TOTAL CARRIED FORWARD TO SUMMARY | I22: =SUM(I5:I21) -> R50,000.00

Sheet C5.2
B2: C5.2 | E2: FILL
B3: ITEM | E3: DESCRIPTION | F3: UNIT | G3: QTY | H3: RATE | I3: AMT
B4: C5.2.2 | E4: Fill construction:
C5: C5.2.2.1 | E5: Normal fill material in compacted layer thicknesses of 200mm and less:
D6: (a) | E6: Cut and borrow to fill: Silty sand or sandy gravel compacted to 90% of modified AASHTO density | F6: m3 | G6: 34,000.00 | I6: =H6*G6 -> 0
C7: C5.2.2.3 | E7: Cut and borrow to fill: Free draining sand compacted to 100% of mod. AASHTO density (was: Sand fill material in compacted layer thicknesses of 400mm and less, compacted to 100% of MDD) | F7: m3 | G7: 10,000.00 | I7: 0
B8: C5.2.12 | E8: Extra over for excavation hardness in fill material
C9: C5.2.12.1 | E9: Extra over item 33.01 for excavating and breaking down material in: Intermediate excavation | F9: m3 | G9: 15,000.00 | I9: =H9*G9 -> 0
C10: C5.2.12.2 | E10: Extra over item 33.01 for excavating and breaking down material in: Hard excavation | F10: m3 | G10: 2,000.00 | I10: 0
B11: C5.2.11 | E11: Finishing-off fill slopes, medians and interchange areas:
C12: C5.2.11.1 | E12: Finishing off fill slopes | F12: m3 | G12: 12,000.00 | I12: =H12*G12 -> 0
B14: TOTAL CARRIED FORWARD TO SUMMARY | I14: =SUM(I6:I13) -> 0

Sheet C9.1
B2: C9.1 | E2: ASPHALT LAYERS
B3: ITEM | E3: DESCRIPTION | F3: UNIT | G3: QTY | H3: RATE | I3: AMT
B4: C9.1.2 | E4: Construction of trial sections
C5: C9.1.2.1 | D5: (a) | E5: 50 mm thick Stone Mastic Asphalt (SMA) constructed at full width for the runway (Gap-graded mix, 14 mm NMPS. PG 58E-22 polymer-modified binder, mix design to adhere to NAPA, AASHTO R46 and SABITA MANUAL 35 Design Level III requirements. | F5: m² | G5: 900.00 | I5: =H5*G5 -> 0
C6: C9.1.2.1 | D6: (b) | E6: Base constructed with new asphalt: BTB (100 mm, 35/50 penetration grade bitumen, NMPS 20mm, design level II and placing technique paver) 350mx46m | F6: m² | G6: 900.00 | I6: 0
C7: C9.1.2.1 | D7: (c) | E7: Asphalt layer constructed for rehabilitation: Surfacing with AC: Sand skeletal mix gab graded as defined (50 mm layer thickness, AP1 modified binder, design level II, NMPS 14 mm and placing technique paver) at full width; TWY Works (APLHA, ALPHA 1,ALPHA 2, ALPHA 3, ALPHA 4, ECHO and CHARLI) | F7: m² | G7: 900.00 | I7: 0
C8: C9.1.2.2 | D8: (a) | E8: Removal of the trial section (50mm Surfacing) where so instructed by the Engineer - RWY Works | F8: m² | G8: 900.00 | I8: 0
C9: C9.1.2.2 | D9: (b) | E9: Removal of the trial section (100mm BTB) where so instructed by the Engineer - RWY Works | F9: m² | G9: 900.00 | I9: 0
B10: C9.1.3 | E10: Application of bond coat
C11: C9.1.3.1 | D11: (a) | E11: Tack coat: 30% stablegrade emulsion at full width for resurfacing (0,5 l/m²) - RWY Works | F11: l | G11: 50,000.00 | I11: =H11*G11 -> 0
C12: C9.1.3.1 | D12: (b) | E12: Tack coat: 30% stablegrade emulsion - TWY Works | F12: l | G12: 26,500.00 | I12: 0
C13: C9.1.3.3 | E13: Application of tack coat to the edges of a layer - RWY Works | F13: l | G13: 24,000.00 | I13: 0
B14: C9.1.4 | E14: Asphalt base
C15: C9.1.4.2 | E15: Rehabilitation
C16: C9.1.4.2 | D16: (a) | E16: Base constructed with new asphalt: BTB (100 mm, 35/50 penetration grade bitumen, NMPS 20mm, design level II and placing technique paver) 350mx46m - RWY Works | F16: t | G16: 4,000.00 | I16: =H16*G16 -> 0
C17: C9.1.4.2 | D17: (b) | E17: Asphalt layer constructed for rehabilitation: Base with BTB (100 mm, 35/50 penetration grade bitumen, NMPS 20mm, design level II and placing technique paver) 10% Taxiway ALPHA and 100% Taxiway ALPHA 3 | F17: t | G17: 1,500.00 | I17: 0
B18: C9.1.5 | E18: Asphalt surfacing
C19: C9.1.5.2 | E19: Rehabilitation
C20: C9.1.5.2 | E20: 50 mm thick Stone Mastic Asphalt (SMA) constructed at full width for the runway (Gap-graded mix, 14 mm NMPS. PG 58E-22 polymer-modified binder, mix design to adhere to NAPA, AASHTO R46 and SABITA MANUAL 35 Design Level III requirements. | F20: t | G20: 12,000.00 | I20: =H20*G20 -> 0
C21: C9.1.5.2(e) | D21: (a) | E21: Asphalt layer constructed for rehabilitation: Surfacing with AC: Sand skeletal mix gab graded as defined (50 mm layer thickness, AP1 modified binder, design level II, NMPS 14 mm and placing technique paver) at full width; TWY Works (APLHA, ALPHA 1,ALPHA 2, ALPHA 3, ALPHA 4, ECHO and CHARLI) | F21: t | G21: 10,000.00 | I21: 0
C22: C9.1.5.2(e) | D22: (b) | E22: Asphalt layer constructed for rehabilitation: Sand skeletal mix gab graded as defined (50 mm layer thickness, AP1 modified binder, design level II, NMPS 14 mm and placing technique paver); GA Works | F22: t | G22: 600.00 | I22: 0
B23: C9.1.13 | E23: Coring of asphalt layers
C24: C9.1.13.1 | D24: (a) | E24: Cores in asphalt paving: 100mm - RWY Works | F24: No | G24: 600.00 | I24: =H24*G24 -> 0
C25: C9.1.13.1 | D25: (b) | E25: Cores in asphalt paving: 100mm - TWY Works | F25: No | G25: 400.00 | I25: 0
C26: C9.1.13.1 | D26: (c) | E26: Cores in asphalt paving: 100mm - GA Works | F26: No | G26: 25.00 | I26: 0
B27: C9.1.17 | E27: Other Asphalt Related Works
C28: C9.1.17.2 | E28: Application of rejuvenation spray - GA Works | F28: m² | G28: 4,000.00 | I28: =H28*G28 -> 0
C29: C9.1.17.3 | E29: Sealing cracks: Cleaning crack with hot compressed air and sealing using Class CR1 modified binder crack sealant - GA Works | F29: l | G29: 1,000.00 | I29: 0
B31: TOTAL CARRIED FORWARD TO SUMMARY | I31: =SUM(I4:I30) -> 0

Sheet C11.1
B2: C11.1 | E2: PITCHING, STONEWORK AND PROTECTION AGAINST EROSION
B3: ITEM | E3: DESCRIPTION | F3: UNIT | G3: QTY | H3: RATE | I3: AMT
B4: C11.1.2 | E4: Stone pitching:
C6: C11.1.2.2 | E6: Grouted stone pitching with mortar | F6: m² | G6: 30 | I6: =G6*H6 -> 0
C8: C11.1.2.3 | E8: Grouted stone pitching on a concrete bed | F8: m² | G8: 3 | I8: =G8*H8 -> 0
B10: C11.1.7 | E10: Provision of approved herbicide and ant poison:
C12: C11.1.7.1 | E12: Provision of materials | F12: PC sum | G12: 1 | H12: R100,000.00 | I12: =G12*H12 -> R100,000.00
C14: C11.1.7.2 | E14: Contractor’s charges and profit added to the prime cost sum | F14: % | G14: =I12 -> R100,000.00 | I14: =G14*H14 -> 0
B16: Total Carried Forward To Summary | I16: =SUM(I4:I15) -> R100,000.00

Sheet C11.2
B2: C11.2 | E2: NON-STRUCTURAL GABIONS
B3: ITEM | E3: DESCRIPTION | F3: UNIT | G3: QTY | H3: RATE | I3: AMOUNT
B4: C11.2.1 | E4: Foundation trench excavation:
C6: C11.2.1.1 | E6: Excavating all material situated within the following depth ranges below the surface level:
E8: (a) 0 m to 1,5 m | F8: m³ | G8: 420 | I8: =G8*H8 -> 0
E10: (b) Exceeding 1,5 m and up to 3,0 m | F10: m³ | G10: 105 | I10: =G10*H10 -> 0
C12: C11.2.1.2 | E12: Extra over sub-item C11.2.1.1 for excavation in hard material, irrespective of depth | F12: m³ | G12: 21 | I12: =G12*H12 -> 0
B14: C11.2.2 | E14: Surface preparation for bedding the gabion boxes and mattresses | F14: m² | G14: 130 | I14: =G14*H14 -> 0
B16: C11.2.3 | E16: Gabion boxes and mattresses:
C18: C11.2.3.1 | E18: Galvanized gabion boxes:
E20: (a) 0.5 m x 0.5 m x 1.0 m | F20: m³ | G20: 10 | I20: =G20*H20 -> 0
E22: (b) 1.0 m x 0.3 m x 1.0 m | F22: m³ | G22: 1 | I22: =G22*H22 -> 0
E24: (c) 1.0 m x 1.0 m x 1.0 m | F24: m³ | G24: 1 | I24: =G24*H24 -> 0
C26: C11.2.3.3 | E26: Galvanized gabion mattresses :
E28: (a) 0,3 m deep with 80 mm x 100 mm mesh and diaphragms at 1,0 m centres and 2,7 mm dia mesh wire | F28: m³ | G28: 50 | I28: =G28*H28 -> 0
E30: (b) 0,5 m deep with 80 mm x 100 mm mesh and diaphragms at 1,0 m centres and 2,7 mm dia mesh wire | F30: m³ | G30: 5 | I30: =G30*H30 -> 0
B32: C11.2.4 | E32: Geotextile (Synthetic filter membrane Grade 3) | F32: m² | G32: 110 | I32: =G32*H32 -> 0
B33: Total Carried Forward To Summary | I33: =SUM(I4:I32) -> 0

Sheet C11.7
B2: C11.7 | E2: ROAD MARKINGS AND ROAD STUDS
B3: ITEM | E3: DESCRIPTION | F3: UNIT | G3: QTY | H3: RATE | I3: AMT
B4: C11.7.1 | C4: Road marking:
C5: C11.7.1.1 | E5: White Lines (broken or unbroken) 900 mm wide - RWY Works | F5: km | G5: 7 | I5: =H5*G5 -> 0
C6: C11.7.1.1 | E6: Temporary White lines (broken or unbroken) 900 mm wide (at half normal application rate) - RWY Works | F6: km | G6: 7 | I6: 0
C7: C11.7.1.2 | E7: Yellow lines (broken or unbroken) 150 mm wide - RWY Works | F7: km | G7: 1.5 | I7: 0
C8: C11.7.1.2 | E8: Yellow lines (broken or unbroken) 150 mm wide - TWY Works | F8: km | G8: 20 | I8: 0
C9: C11.7.1.2 | E9: Temporary Yellow Lines (150mm wide) (at half normal application rate) - TWY Works | F9: km | G9: 5 | I9: 0
C10: C11.7.1.2 | E10: Yellow lines (broken or unbroken) 150 mm wide - GA Works | F10: km | G10: 4 | I10: 0
C11: C11.7.1.2 | E11: Temporary Yellow Lines (150mm wide) (at half normal application rate) - GA Works | F11: km | G11: 1 | I11: 0
C12: C11.7.1.4 | E12: White lettering and symbols - RWY Works | F12: m² | G12: 200 | I12: 0
C13: C11.7.1.4 | E13: Temporary White lettering and symbols (at half normal application rate) - RWY Works | F13: m² | G13: 200 | I13: 0
C14: C11.7.1.4 | E14: White lettering and symbols - TWY Works | F14: m² | G14: 15 | I14: 0
C15: C11.7.1.4 | E15: Temporary White lettering and symbols (at half normal application rate) - TWY Works | F15: m² | G15: 10 | I15: 0
C16: C11.7.1.4 | E16: White lettering and symbols - GA Works | F16: m² | G16: 15 | I16: 0
C17: C11.7.1.4 | E17: Temporary White lettering and symbols (at half normal application rate) - GA Works | F17: m² | G17: 10 | I17: 0
C18: C11.7.1.7 | E18: White solid (threshold, TDZ and aiming marks) - RWY Works | F18: m² | G18: 5200 | I18: 0
C19: C11.7.1.7 | E19: Temporary White solid (threshold, TDZ and aiming marks) (at half normal application rate) - RWY Works | F19: m² | G19: 5200 | I19: 0
C20: C11.7.1.7 | E20: Red solid paint for sign backgrounds (Permanent) - TWY Works | F20: m² | G20: 80 | I20: 0
C21: C11.7.1.7 | E21: Temporary Red solid paint for sign backgrounds (at half normal application rate) - TWY Works | F21: m² | G21: 80 | I21: 0
C22: C11.7.1.7 | E22: Red solid paint for sign backgrounds (Permanent) - GA Works | F22: m² | G22: 5 | I22: 0
C23: C11.7.1.7 | E23: Temporary Red solid paint for sign backgrounds (at half normal application rate) - GA Works | F23: m² | G23: 3 | I23: 0
B24: C11.7.8 | C24: Setting out and premarking the lines (excluding traffic island markings, lettering and symbols)
C25: C11.7.8.1 | E25: Setting out and premarking for temporary roadmarking paint - RWY Works | F25: km | G25: 50 | I25: =H25*G25 -> 0
C26: C11.7.8.2 | E26: Setting out and premarking for temporary roadmarking paint - TWY Works | F26: km | G26: 7 | I26: =H26*G26 -> 0
C27: C11.7.8.3 | E27: Setting out and premarking for temporary roadmarking paint - GA Works | F27: km | G27: 2 | I27: 0
B29: TOTAL CARRIED FORWARD TO SUMMARY | I29: =SUM(I5:I28) -> 0

Sheet C11.9
B2: C11.9 | E2: FINISHING THE ROAD AND ROAD RESERVE AND TREATING OLD ROADS
B3: ITEM | E3: DESCRIPTION | F3: UNIT | G3: QTY | H3: RATE | I3: AMT
B4: C11.9.1 | C4: Finishing the road and road reserve:
C5: C11.9.1.3 | E5: Finishing and cleaning of the works: Runway at the end of each shift | F5: Month | G5: 12 | I5: =H5*G5 -> 0
B7: TOTAL CARRIED FORWARD TO SUMMARY | I7: =SUM(I5) -> 0

Sheet C20.1
B2: C20.1 | E2: TESTING MATERIALS AND JUDGEMENT OF WORKMANSHIP
B3: ITEM | E3: DESCRIPTION | F3: UNIT | G3: QTY | H3: RATE | I3: AMT
B4: C20.1.2 | C4: Special tests requested by the Engineer
C5: C20.1.2.2 | D5: (a) | E5: Other tests | F5: prime cost (PC) sum | G5: 1 | H5: R400,000.00 | I5: =H5*G5 -> R400,000.00
D6: (i) | E6: Handling costs and profit in respect of item C20.1.2.2(a) | F6: % | G6: =H5 -> 400,000 | I6: 0
C7: C20.1.5 | E7: Financial Contribution by Contractor for an Independent Site Laboratory (to be a negative rate) | F7: Month | G7: 12 | I7: =IF(H7<0,G7*H7,-G7*H7) -> 0
C8: PC20.1.6 | E8: Payment of independent site laboratory by Employer
C9: C20.1.6.1 | D9: (a) | E9: Direct payment by contractor | F9: prime cost (PC) sum | G9: 1 | H9: R4,500,000.00 | I9: R4,500,000.00
D10: (i) | E10: Handling costs and profit in respect of item C20.1.2.2(a) | F10: % | G10: =H9 -> 4,500,000 | I10: =H10*G10 -> 0
B11: TOTAL CARRIED FORWARD TO SUMMARY | I11: =SUM(I5:I10) -> R4,900,000.00

Sheet Schedule B
B2: A1 | E2: TESTING MATERIALS AND JUDGEMENT OF WORKMANSHIP
B3: ITEM | E3: DESCRIPTION | F3: UNIT | G3: QTY | H3: RATE | I3: AMT
B4: A1 | E4: Electrical Systems | F4: Prov Sum | G4: 1 | H4: R16,284,436.34 | I4: =H4*G4 -> R16,284,436.34
B5: A2 | E5: Electrical Systems | F5: % | G5: =I4 -> 16,284,436 | I5: =H5*G5 -> 0
B6: TOTAL CARRIED FORWARD TO SUMMARY | I6: =I4+I5 -> R16,284,436.34
